OrganisationURI,OrganisationLabel,Organisation Unit,TransactionNumber,Invoice Ref.,Beneficiary Name,Expense Type,Purpose,Payment Date,Amount
http://statistics.data.gov.uk/id/local-authority-district/23UB,Cheltenham Borough Council,Recreation Centre Repairs & Maintenance,14071530,218746,A & E Fire and Security Ltd,R2042-REC111,R & M of Build Fire Systems,23/08/2019,768.18 
http://statistics.data.gov.uk/id/local-authority-district/23UB,Cheltenham Borough Council,Press & PR/Communications,14071400,INV2270,Access Intelligence Media & Communications Limited T/A Vuelio,R4534-SUP018,IT - Maint Agreements,16/08/2019,7420.00 
http://statistics.data.gov.uk/id/local-authority-district/23UB,Cheltenham Borough Council,Bank Charges,14071315,201900477,Advam (UK) Limited,R4403-COR008,Bank Charges,09/08/2019,1405.15 
http://statistics.data.gov.uk/id/local-authority-district/23UB,Cheltenham Borough Council,Development Costs - Newton Road,14071061,36143,Allhands Limited T/A Harrold Jones Services,C1107-CAH058,Building Works,09/08/2019,9007.00 
http://statistics.data.gov.uk/id/local-authority-district/23UB,Cheltenham Borough Council,Development Costs - Newton Road,14071061,36143,Allhands Limited T/A Harrold Jones Services,C1107-CAH058,Building Works,09/08/2019,9007.00 
http://statistics.data.gov.uk/id/local-authority-district/23UB,Cheltenham Borough Council,Development Costs - Newton Road,14071061,36143,Allhands Limited T/A Harrold Jones Services,C1107-CAH058,Building Works,09/08/2019,-9007.00 
http://statistics.data.gov.uk/id/local-authority-district/23UB,Cheltenham Borough Council,Flood Risk Management,14071464,F 1928,Alliance Flood Solutions Ltd,R5001-FRM101,TPP - Major External Contractors,23/08/2019,-3545.00 
http://statistics.data.gov.uk/id/local-authority-district/23UB,Cheltenham Borough Council,Flood Risk Management,14071464,F 1928,Alliance Flood Solutions Ltd,R5001-FRM101,TPP - Major External Contractors,23/08/2019,3545.00 
http://statistics.data.gov.uk/id/local-authority-district/23UB,Cheltenham Borough Council,Flood Risk Management,14071464,F 1928,Alliance Flood Solutions Ltd,R5001-FRM101,TPP - Major External Contractors,23/08/2019,3545.00 
http://statistics.data.gov.uk/id/local-authority-district/23UB,Cheltenham Borough Council,Press & PR/Communications,14071236,I19080102A,Alpha Papa Tango Limited,R4400-SUP018,Services - Professional Fees,16/08/2019,2000.00 
http://statistics.data.gov.uk/id/local-authority-district/23UB,Cheltenham Borough Council,Urban Design,14071192,AE13104,AndersElite Ltd,R1100-URB101,Agency Staff,16/08/2019,635.25 
http://statistics.data.gov.uk/id/local-authority-district/23UB,Cheltenham Borough Council,Homelessness,14071694,REDACTED,Andrews Lettings & Management Ltd T/A Andrews Property Group,R6280-HOM001,Grants,30/08/2019,804.00 
http://statistics.data.gov.uk/id/local-authority-district/23UB,Cheltenham Borough Council,Cheltenham Municipal Offices,14070743,1069,Ardagh Management Limited,R2024-ADB101,R & M of Build - Refurbishments,23/08/2019,575.00 
http://statistics.data.gov.uk/id/local-authority-district/23UB,Cheltenham Borough Council,Cheltenham Municipal Offices,14071641,1079,Ardagh Management Limited,R2004-ADB101,R & M of Build Programmed,30/08/2019,3696.00 
http://statistics.data.gov.uk/id/local-authority-district/23UB,Cheltenham Borough Council,Tourist/Visitor Information Centre,14071053,15880,Artworks Design Consultants (Cheltenham) Limited,R4014-TOU002,Marketing,02/08/2019,831.00 
http://statistics.data.gov.uk/id/local-authority-district/23UB,Cheltenham Borough Council,Development Control - Applications,14071460,132703,Asbri Planning Limited,R4400-DEV001,Services - Professional Fees,23/08/2019,8948.00 
http://statistics.data.gov.uk/id/local-authority-district/23UB,Cheltenham Borough Council,Disabled Facility Grants,14071040,18/00115/DMTHA FINAL,Assured Bathing Solutions Ltd,C5000-CAP221,Grants,02/08/2019,5796.90 
http://statistics.data.gov.uk/id/local-authority-district/23UB,Cheltenham Borough Council,ICT,14071099,808227,Axiell ALM Limited,R4531-SUP005,IT - Purchase of Software,02/08/2019,2880.00 
http://statistics.data.gov.uk/id/local-authority-district/23UB,Cheltenham Borough Council,Treasury Management,14071289,BGC-Jul-2019-00003397,BGC European Holdings,R4447-COR006,Brokerage Fees,09/08/2019,1419.18 
http://statistics.data.gov.uk/id/local-authority-district/23UB,Cheltenham Borough Council,Treasury Management,14071288,BGC-Jul-2019-00003730,BGC European Holdings,R4447-COR006,Brokerage Fees,09/08/2019,4172.59 
http://statistics.data.gov.uk/id/local-authority-district/23UB,Cheltenham Borough Council,Tourist/Visitor Information Centre,14071743,INV0981903,British Cycling Federation,R4400-TOU002,Services - Professional Fees,30/08/2019,684.00 
http://statistics.data.gov.uk/id/local-authority-district/23UB,Cheltenham Borough Council,Income and Expenditure on Investment Properties and Changes in Their Fair Value,14071424,954517270,British Gas Business,R2100-FIE040,Electricity,23/08/2019,1106.55 
http://statistics.data.gov.uk/id/local-authority-district/23UB,Cheltenham Borough Council,CCTV,14071670,20028235,BT Redcare,R4548-CCT001,IT - Cabling and Network,30/08/2019,5174.59 
http://statistics.data.gov.uk/id/local-authority-district/23UB,Cheltenham Borough Council,Cheltenham Municipal Offices,14070963,08/388090,Bunzl Cleaning and Hygiene Supplies,R4009-ADB101,Materials - Cleaning Materials,23/08/2019,884.47 
http://statistics.data.gov.uk/id/local-authority-district/23UB,Cheltenham Borough Council,Pollution Control,14071306,19009067,Bureau Veritas UK Limited,R4400-REG013,Services - Professional Fees,09/08/2019,1300.00 
http://statistics.data.gov.uk/id/local-authority-district/23UB,Cheltenham Borough Council,Cyber Business Park,14071318,SI-13720,Business Furniture Direct Limited,R4005-PLP105,Furniture - Purchases,16/08/2019,2851.97 
http://statistics.data.gov.uk/id/local-authority-district/23UB,Cheltenham Borough Council,Community Welfare Grants,14071611,857,C & L Entertainment Ltd,R6280-GBD001,Grants,30/08/2019,1000.00 
http://statistics.data.gov.uk/id/local-authority-district/23UB,Cheltenham Borough Council,Recreation Centre Repairs & Maintenance,14071442,301267/7/2019,Centrica Business Solutions (Generations) limited,R2100-REC111,Electricity,23/08/2019,2829.14 
http://statistics.data.gov.uk/id/local-authority-district/23UB,Cheltenham Borough Council,Waste & Recycling - Marketing & Management,14071292,21132,Characters Signs Limited,R4000-RYC007,Equipment Purchase,09/08/2019,9082.05 
http://statistics.data.gov.uk/id/local-authority-district/23UB,Cheltenham Borough Council,Community Welfare Grants,14071571,COMMUNITY PRIDE,Cheltenham Paint Festival,R6280-GBD001,Grants,30/08/2019,3000.00 
http://statistics.data.gov.uk/id/local-authority-district/23UB,Cheltenham Borough Council,Cashiers,14070767,C/PY182314,Civica UK Limited,R4534-SUP014,IT - Maint Agreements,09/08/2019,700.00 
http://statistics.data.gov.uk/id/local-authority-district/23UB,Cheltenham Borough Council,Cashiers,14070767,C/PY182314,Civica UK Limited,R4534-SUP014,IT - Maint Agreements,09/08/2019,2078.50 
http://statistics.data.gov.uk/id/local-authority-district/23UB,Cheltenham Borough Council,Flood Risk Management,14071056,C32736,Cotswold Drain Service Limited,R5001-FRM101,TPP - Major External Contractors,02/08/2019,960.00 
http://statistics.data.gov.uk/id/local-authority-district/23UB,Cheltenham Borough Council,Oakley Resource Centre,14071441,14773,County Clean Limited,R2700-COM101,Contract Cleaning,16/08/2019,1106.00 
http://statistics.data.gov.uk/id/local-authority-district/23UB,Cheltenham Borough Council,Development costs - Phase 3 Garage Sites,14071609,Invoice 17003/11510/2,Craddy Pitchers Ltd T/A Craddys,C1116-CAH062,Other Development Fees,23/08/2019,4875.00 
http://statistics.data.gov.uk/id/local-authority-district/23UB,Cheltenham Borough Council,Green Waste,14071458,3023415,Craemer UK Limited,R4000-RYC002,Equipment Purchase,16/08/2019,11856.00 
http://statistics.data.gov.uk/id/local-authority-district/23UB,Cheltenham Borough Council,Green Waste,14071260,3023430,Craemer UK Limited,R4000-RYC002,Equipment Purchase,09/08/2019,11856.00 
http://statistics.data.gov.uk/id/local-authority-district/23UB,Cheltenham Borough Council,Car Parks - Off Street Operations,14071316,IN132360,CREDITCALL LTD,R4428-CPK001,Services - credit card charges,09/08/2019,802.08 
http://statistics.data.gov.uk/id/local-authority-district/23UB,Cheltenham Borough Council,Homelessness,14071231,REDACTED,Crystalight Limited,R6280-HOM001,Grants,02/08/2019,807.00 
http://statistics.data.gov.uk/id/local-authority-district/23UB,Cheltenham Borough Council,Non Traditional Homes,14071042,33287,Curtins Consulting Limited,C1107-CAH036,Building Works,16/08/2019,1300.00 
http://statistics.data.gov.uk/id/local-authority-district/23UB,Cheltenham Borough Council,Sports & Open Spaces Operations,14071475,1380,D A Jones Landscapes,R2075-OPS002,Grounds Maintenance - Contract,09/08/2019,725.00 
http://statistics.data.gov.uk/id/local-authority-district/23UB,Cheltenham Borough Council,Sports & Open Spaces Operations,14071475,1380,D A Jones Landscapes,R2075-OPS002,Grounds Maintenance - Contract,09/08/2019,725.00 
http://statistics.data.gov.uk/id/local-authority-district/23UB,Cheltenham Borough Council,Sports & Open Spaces Operations,14071475,1380,D A Jones Landscapes,R2075-OPS002,Grounds Maintenance - Contract,09/08/2019,-725.00 
http://statistics.data.gov.uk/id/local-authority-district/23UB,Cheltenham Borough Council,Sports & Open Spaces Operations,14071474,1381,D A Jones Landscapes,R2075-OPS002,Grounds Maintenance - Contract,16/08/2019,780.00 
http://statistics.data.gov.uk/id/local-authority-district/23UB,Cheltenham Borough Council,Sports & Open Spaces Operations,14071474,1381,D A Jones Landscapes,R2075-OPS002,Grounds Maintenance - Contract,16/08/2019,780.00 
http://statistics.data.gov.uk/id/local-authority-district/23UB,Cheltenham Borough Council,Sports & Open Spaces Operations,14071474,1381,D A Jones Landscapes,R2075-OPS002,Grounds Maintenance - Contract,16/08/2019,-780.00 
http://statistics.data.gov.uk/id/local-authority-district/23UB,Cheltenham Borough Council,Climate Change,14071748,1908221,De Courcy Alexander Ltd,R4400-CCC001,Services - Professional Fees,30/08/2019,5000.00 
http://statistics.data.gov.uk/id/local-authority-district/23UB,Cheltenham Borough Council,ICT,14071062,7402546065,Dell Corporation Limited,R4530-SUP005,IT - Purchase of Hardware,30/08/2019,6375.62 
http://statistics.data.gov.uk/id/local-authority-district/23UB,Cheltenham Borough Council,Income and Expenditure on Investment Properties and Changes in Their Fair Value,14071152,304647,Devonshires Solicitors LLP,R4400-FIE040,Services - Professional Fees,02/08/2019,1500.00 
http://statistics.data.gov.uk/id/local-authority-district/23UB,Cheltenham Borough Council,Cyber Business Park,14071269,17484,Environmental Dimension Partnership Limited,R4400-PLP105,Services - Professional Fees,16/08/2019,2474.38 
http://statistics.data.gov.uk/id/local-authority-district/23UB,Cheltenham Borough Council,Development Control - Applications,14071722,17680,Environmental Dimension Partnership Limited,R4400-DEV001,Services - Professional Fees,30/08/2019,3612.47 
http://statistics.data.gov.uk/id/local-authority-district/23UB,Cheltenham Borough Council,Asbestos Management,14071159,9411,Environmental Management Solutions Limited,C1107-CAH012,Building Works,09/08/2019,-44679.90 
http://statistics.data.gov.uk/id/local-authority-district/23UB,Cheltenham Borough Council,Asbestos Management,14071159,9411,Environmental Management Solutions Limited,C1107-CAH012,Building Works,09/08/2019,44679.90 
http://statistics.data.gov.uk/id/local-authority-district/23UB,Cheltenham Borough Council,Asbestos Management,14071159,9411,Environmental Management Solutions Limited,C1107-CAH012,Building Works,09/08/2019,44679.90 
http://statistics.data.gov.uk/id/local-authority-district/23UB,Cheltenham Borough Council,Oakley Resource Centre,14071440,H177364288,E-on Energy,R2100-COM101,Electricity,16/08/2019,1346.68 
http://statistics.data.gov.uk/id/local-authority-district/23UB,Cheltenham Borough Council,Pest Control,14071417,569644,Facelift (GB) Limited,R2702-REG018,Pest Control,23/08/2019,1170.00 
http://statistics.data.gov.uk/id/local-authority-district/23UB,Cheltenham Borough Council,Pest Control,14071435,569983,Facelift (GB) Limited,R2702-REG018,Pest Control,23/08/2019,937.50 
http://statistics.data.gov.uk/id/local-authority-district/23UB,Cheltenham Borough Council,"Cemetery, Crematorium and Churchyards",14071556,19103336,Facultatieve Technologies Limited,R2205-CCM001,Service Charges,30/08/2019,10753.30 
http://statistics.data.gov.uk/id/local-authority-district/23UB,Cheltenham Borough Council,Reception/Customer Services,14071517,740,Get Media,R4317-SUP008,Non Staff Advertising,23/08/2019,1250.00 
http://statistics.data.gov.uk/id/local-authority-district/23UB,Cheltenham Borough Council,Cyber Business Park,14071160,342,GFirst LEP CIC,R4400-PLP105,Services - Professional Fees,02/08/2019,4954.61 
http://statistics.data.gov.uk/id/local-authority-district/23UB,Cheltenham Borough Council,Cyber Business Park,14071747,346,GFirst LEP CIC,R4400-PLP105,Services - Professional Fees,30/08/2019,4954.61 
http://statistics.data.gov.uk/id/local-authority-district/23UB,Cheltenham Borough Council,Vehicles & recycling equipment,14071412,31040,GJF Fabrications Limited,C4000-CAP301,Acquisition of Equipment,16/08/2019,13403.00 
http://statistics.data.gov.uk/id/local-authority-district/23UB,Cheltenham Borough Council,Car Parks - Off Street Operations,14071735,50246,Glevum Security Limited,R4401-CPK001,Services - Fees and Charges,30/08/2019,1176.00 
http://statistics.data.gov.uk/id/local-authority-district/23UB,Cheltenham Borough Council,Building Control - Fee Earning Work,14071459,INV151029,Gloucestershire College,R1652-BUC001,Training Fees (External),16/08/2019,3350.00 
http://statistics.data.gov.uk/id/local-authority-district/23UB,Cheltenham Borough Council,Corporate Policy Making,14071210,1800538619,Gloucestershire County Council,R6282-COR003,Contributions,09/08/2019,10000.00 
http://statistics.data.gov.uk/id/local-authority-district/23UB,Cheltenham Borough Council,Pensions Backfunding,14071184,800009450,GLOUCESTERSHIRE COUNTY COUNCIL (LGPS ONLY),R1301-SUP038,Enhanced Pension,09/08/2019,15675.36 
http://statistics.data.gov.uk/id/local-authority-district/23UB,Cheltenham Borough Council,Pensions Backfunding,14071632,800009541,GLOUCESTERSHIRE COUNTY COUNCIL (LGPS ONLY),R1301-SUP038,Enhanced Pension,30/08/2019,1350.00 
http://statistics.data.gov.uk/id/local-authority-district/23UB,Cheltenham Borough Council,Community Welfare Grants,14071219,5267,Gloucestershire Rural Community Council,R6280-GBD001,Grants,16/08/2019,17000.00 
http://statistics.data.gov.uk/id/local-authority-district/23UB,Cheltenham Borough Council,Repairs and Maintenance,14071399,30412,Gooch Group Limited,R2700-HRA100,Contract Cleaning,23/08/2019,655.78 
http://statistics.data.gov.uk/id/local-authority-district/23UB,Cheltenham Borough Council,War Memorials,14071617,30519,Gooch Group Limited,R2700-CUL002,Contract Cleaning,23/08/2019,766.32 
http://statistics.data.gov.uk/id/local-authority-district/23UB,Cheltenham Borough Council,Car Parks - Off Street R&M,14071555,30557,Gooch Group Limited,R2700-CPK101,Contract Cleaning,23/08/2019,1675.00 
http://statistics.data.gov.uk/id/local-authority-district/23UB,Cheltenham Borough Council,Development costs - Phase 3 Garage Sites,14071523,INV-1572,Ground Investigation Limited,C1116-CAH062,Other Development Fees,30/08/2019,1450.00 
http://statistics.data.gov.uk/id/local-authority-district/23UB,Cheltenham Borough Council,Income and Expenditure on Investment Properties and Changes in Their Fair Value,14071265,9131,H & W Facilities Management Limited,R9115-FIE040,Service Charges,09/08/2019,548.17 
http://statistics.data.gov.uk/id/local-authority-district/23UB,Cheltenham Borough Council,Flood Risk Management,14071234,204628CH009,Halcrow Group Limited,R5001-FRM101,TPP - Major External Contractors,09/08/2019,2561.00 
http://statistics.data.gov.uk/id/local-authority-district/23UB,Cheltenham Borough Council,Supervision and Management,14071164,SIAL/00004066,Herefordshire Housing Limited,R4445-HRA110,Communal Alarms - Monitoring & Maintenance,02/08/2019,605.15 
http://statistics.data.gov.uk/id/local-authority-district/23UB,Cheltenham Borough Council,Supervision and Management,14071170,SIAL/00004093,Herefordshire Housing Limited,R4445-HRA110,Communal Alarms - Monitoring & Maintenance,02/08/2019,573.30 
http://statistics.data.gov.uk/id/local-authority-district/23UB,Cheltenham Borough Council,Supervision and Management,14071179,SIAL/00004104,Herefordshire Housing Limited,R4445-HRA110,Communal Alarms - Monitoring & Maintenance,02/08/2019,7031.70 
http://statistics.data.gov.uk/id/local-authority-district/23UB,Cheltenham Borough Council,Warden Call Upgrade,14071158,SIAL/00004239,Herefordshire Housing Limited,C1107-CAH022,Building Works,02/08/2019,1190.80 
http://statistics.data.gov.uk/id/local-authority-district/23UB,Cheltenham Borough Council,Development Control - Applications,14071186,Appeal Costs Reimbursed,Hinton Properties (Grovefield Way) Limited,R4420-DEV001,Legal Expenses And Court Costs,02/08/2019,62500.00 
http://statistics.data.gov.uk/id/local-authority-district/23UB,Cheltenham Borough Council,General Fund Balance Sheet,14071290,CISDEDUCT0607-050819,HMRC (CBC - CIS),B6220-BAL100,CIS Deductions Control (reallocated),09/08/2019,17004.73 
http://statistics.data.gov.uk/id/local-authority-district/23UB,Cheltenham Borough Council,Training & Development,14071223,214PS00149425APPRENTICELVY04,HMRC (CBC - PAYE & NIC),R1425-SUP020,Apprentice Levy,09/08/2019,1684.00 
http://statistics.data.gov.uk/id/local-authority-district/23UB,Cheltenham Borough Council,Repairs and Maintenance,14071233,150403AC2,Ian Williams Limited,R2060-HRA100,R & M of Build Cyclical Painting Communal Areas,30/08/2019,68847.31 
http://statistics.data.gov.uk/id/local-authority-district/23UB,Cheltenham Borough Council,Repairs and Maintenance,14071233,150403AC2,Ian Williams Limited,R2060-HRA100,R & M of Build Cyclical Painting Communal Areas,30/08/2019,-68847.31 
http://statistics.data.gov.uk/id/local-authority-district/23UB,Cheltenham Borough Council,Repairs and Maintenance,14071233,150403AC2,Ian Williams Limited,R2060-HRA100,R & M of Build Cyclical Painting Communal Areas,30/08/2019,68847.31 
http://statistics.data.gov.uk/id/local-authority-district/23UB,Cheltenham Borough Council,Built Environment,14071487,7026358,Idox Software Limited,R4400-SUP040,Services - Professional Fees,16/08/2019,1250.00 
http://statistics.data.gov.uk/id/local-authority-district/23UB,Cheltenham Borough Council,Individual Electoral Registration,14071699,7026463,Idox Software Limited,R4531-ELE010,IT - Purchase of Software,30/08/2019,1500.00 
http://statistics.data.gov.uk/id/local-authority-district/23UB,Cheltenham Borough Council,Homelessness,14071515,REDACTED,Idris Davies Limited,R6280-HOM001,Grants,16/08/2019,686.00 
http://statistics.data.gov.uk/id/local-authority-district/23UB,Cheltenham Borough Council,Parks & Gardens Operations,14071727,4060,Illman Young Landscape Design Limited,R2075-OPS001,Grounds Maintenance - Contract,30/08/2019,650.00 
http://statistics.data.gov.uk/id/local-authority-district/23UB,Cheltenham Borough Council,Car Parks - Off Street Operations,14071398,41702,Imperial Civil Enforcement Solutions Limited,R4400-CPK001,Services - Professional Fees,09/08/2019,600.00 
http://statistics.data.gov.uk/id/local-authority-district/23UB,Cheltenham Borough Council,Sports & Open Spaces Operations,14071604,19/005,J P North (Farmer),R2071-OPS002,Open Spaces and Grassed Areas,30/08/2019,3040.29 
http://statistics.data.gov.uk/id/local-authority-district/23UB,Cheltenham Borough Council,Sports & Open Spaces Operations,14071604,19/005,J P North (Farmer),R2071-OPS002,Open Spaces and Grassed Areas,30/08/2019,1788.11 
http://statistics.data.gov.uk/id/local-authority-district/23UB,Cheltenham Borough Council,Supervision and Management,14071381,RND300719/comb-19,John Gillman & Sons (Electrical) Limited (Gillmans Appliance),R4002-HRA110,Tools & Equipment - Lease/Rental,16/08/2019,1950.78 
http://statistics.data.gov.uk/id/local-authority-district/23UB,Cheltenham Borough Council,Tourist/Visitor Information Centre,14070581,CBC40,REDACTED,R4400-TOU002,Services - Professional Fees,02/08/2019,6042.00 
http://statistics.data.gov.uk/id/local-authority-district/23UB,Cheltenham Borough Council,Tourist/Visitor Information Centre,14071028,CBC41,REDACTED,R4400-TOU002,Services - Professional Fees,02/08/2019,4647.99 
http://statistics.data.gov.uk/id/local-authority-district/23UB,Cheltenham Borough Council,Cashiers,14061951,80124,Keyzone Computer Products Limited,R4003-SUP014,Tools & Equipment - R & M,23/08/2019,508.36 
http://statistics.data.gov.uk/id/local-authority-district/23UB,Cheltenham Borough Council,Parks & Gardens Repairs & Maintenance,14071182,35129,King Builders Gloucester Limited,R2004-OPS121,R & M of Build Programmed,09/08/2019,1188.00 
http://statistics.data.gov.uk/id/local-authority-district/23UB,Cheltenham Borough Council,Community Safety (Crime Reduction),14071466,127541,Leisuresec PLC,R4409-CCR001,Partnership Staff Fees,23/08/2019,1050.00 
http://statistics.data.gov.uk/id/local-authority-district/23UB,Cheltenham Borough Council,New Heating Installations,14071652,1202970,Liberty Gas Group,C1107-CAH009,Building Works,23/08/2019,3600.91 
http://statistics.data.gov.uk/id/local-authority-district/23UB,Cheltenham Borough Council,Repairs and Maintenance,14071651,1202971,Liberty Gas Group,R2040-HRA100,R & M of Build Central Heating,30/08/2019,47026.83 
http://statistics.data.gov.uk/id/local-authority-district/23UB,Cheltenham Borough Council,Repairs and Maintenance,14071651,1202971,Liberty Gas Group,R2016-HRA100,R & M of Build Void Repairs,30/08/2019,1209.91 
http://statistics.data.gov.uk/id/local-authority-district/23UB,Cheltenham Borough Council,ICT,14071516,16002247,LinchPin Networks Limited,R4548-SUP005,IT - Cabling and Network,23/08/2019,1599.50 
http://statistics.data.gov.uk/id/local-authority-district/23UB,Cheltenham Borough Council,ICT,14071608,16002255,LinchPin Networks Limited,R4548-SUP005,IT - Cabling and Network,23/08/2019,1599.50 
http://statistics.data.gov.uk/id/local-authority-district/23UB,Cheltenham Borough Council,ICT,14071650,16002260,LinchPin Networks Limited,R4548-SUP005,IT - Cabling and Network,30/08/2019,4672.50 
http://statistics.data.gov.uk/id/local-authority-district/23UB,Cheltenham Borough Council,Repairs and Maintenance,14071003,SIN00076555/C,Low Carbon Exchange (LCX Solar Limited),R2004-HRA100,R & M of Build Programmed,09/08/2019,17069.33 
http://statistics.data.gov.uk/id/local-authority-district/23UB,Cheltenham Borough Council,Sustainability Measures,14071163,SIN00082045/A,Low Carbon Exchange (LCX Solar Limited),C1107-CAH032,Building Works,09/08/2019,525.00 
http://statistics.data.gov.uk/id/local-authority-district/23UB,Cheltenham Borough Council,Repairs and Maintenance,14071001,SIN00084487/C,Low Carbon Exchange (LCX Solar Limited),R2004-HRA100,R & M of Build Programmed,09/08/2019,17399.75 
http://statistics.data.gov.uk/id/local-authority-district/23UB,Cheltenham Borough Council,Adaptations for the Disabled (CBC),14071451,18/00094/DMTLA FINAL 1079GB,MAAS Design Services,C1107-CAH028,Building Works,23/08/2019,6227.25 
http://statistics.data.gov.uk/id/local-authority-district/23UB,Cheltenham Borough Council,Development costs - Monkscroft,14071101,20651,Mark Wroot Agricultural & Garden Services,C1102-CAH061,Landscaping,09/08/2019,4760.00 
http://statistics.data.gov.uk/id/local-authority-district/23UB,Cheltenham Borough Council,General Fund Balance Sheet,14071491,Balance as at 1.8.19,Mayor of Cheltenham's Charity Account,B6170-BAL100,Short Term Revenue Creditors (incl RIA) - Other entities and individuals,16/08/2019,724.35 
http://statistics.data.gov.uk/id/local-authority-district/23UB,Cheltenham Borough Council,Trees,14071108,2060,MHP Design Limited,R2070-PLP006,Tree Work,02/08/2019,1020.00 
http://statistics.data.gov.uk/id/local-authority-district/23UB,Cheltenham Borough Council,Adaptations for the Disabled (CBC),14071446,19/00022/DMTLA FINAL,Midwest Mobility Limited,C1107-CAH028,Building Works,16/08/2019,2841.49 
http://statistics.data.gov.uk/id/local-authority-district/23UB,Cheltenham Borough Council,Disabled Facility Grants,14071272,INV1907250434,Midwest Mobility Limited,C5000-CAP221,Grants,09/08/2019,2841.49 
http://statistics.data.gov.uk/id/local-authority-district/23UB,Cheltenham Borough Council,Repairs and Maintenance,14071257,41319,Morgan Lambert Limited,R2040-HRA100,R & M of Build Central Heating,09/08/2019,1716.00 
http://statistics.data.gov.uk/id/local-authority-district/23UB,Cheltenham Borough Council,Repairs and Maintenance,14071258,41479,Morgan Lambert Limited,R2004-HRA100,R & M of Build Programmed,16/08/2019,1000.00 
http://statistics.data.gov.uk/id/local-authority-district/23UB,Cheltenham Borough Council,"Cemetery, Crematorium and Churchyards",14071489,310719,REDACTED,R4401-CCM001,Services - Fees and Charges,16/08/2019,806.62 
http://statistics.data.gov.uk/id/local-authority-district/23UB,Cheltenham Borough Council,Supervision and Management,14071196,340,Nature First Limited,R2070-HRA110,Tree Work,02/08/2019,675.00 
http://statistics.data.gov.uk/id/local-authority-district/23UB,Cheltenham Borough Council,Supervision and Management,14071197,341,Nature First Limited,R2070-HRA110,Tree Work,02/08/2019,1000.00 
http://statistics.data.gov.uk/id/local-authority-district/23UB,Cheltenham Borough Council,Trees,14071402,342,Nature First Limited,R2070-PLP006,Tree Work,16/08/2019,1900.00 
http://statistics.data.gov.uk/id/local-authority-district/23UB,Cheltenham Borough Council,Tourist/Visitor Information Centre,14071305,NM32927,New Mind Internet Consultancy Limited,R4318-TOU002,Photography & Promotional Materials/Design,09/08/2019,1695.00 
http://statistics.data.gov.uk/id/local-authority-district/23UB,Cheltenham Borough Council,Tourist/Visitor Information Centre,14071307,NM32928,New Mind Internet Consultancy Limited,R4401-TOU002,Services - Fees and Charges,09/08/2019,1925.00 
http://statistics.data.gov.uk/id/local-authority-district/23UB,Cheltenham Borough Council,Cheltenham Municipal Offices,14071203,50893125,Nisbets PLC,R4000-ADB101,Equipment Purchase,02/08/2019,1674.86 
http://statistics.data.gov.uk/id/local-authority-district/23UB,Cheltenham Borough Council,Option Appraisal Voids,14071301,12974,NKS Contracts (Central) Limited,C1107-CAH002,Building Works,16/08/2019,-35043.58 
http://statistics.data.gov.uk/id/local-authority-district/23UB,Cheltenham Borough Council,Option Appraisal Voids,14071301,12974,NKS Contracts (Central) Limited,C1107-CAH002,Building Works,16/08/2019,35043.58 
http://statistics.data.gov.uk/id/local-authority-district/23UB,Cheltenham Borough Council,Option Appraisal Voids,14071301,12974,NKS Contracts (Central) Limited,C1107-CAH002,Building Works,16/08/2019,35043.58 
http://statistics.data.gov.uk/id/local-authority-district/23UB,Cheltenham Borough Council,"Cemetery, Crematorium and Churchyards",14071485,51621,Oconnor Construction Company Ltd,R3201-CCM001,Hire of Plant,16/08/2019,967.00 
http://statistics.data.gov.uk/id/local-authority-district/23UB,Cheltenham Borough Council,Repairs and Maintenance,14071271,O0442574,Orbis Protect Limited,R2012-HRA100,R & M of Build Standby and Call Out,09/08/2019,1685.64 
http://statistics.data.gov.uk/id/local-authority-district/23UB,Cheltenham Borough Council,Environmental Health General,14071462,225443,Osborne Richardson Limited,R1100-REG001,Agency Staff,16/08/2019,622.00 
http://statistics.data.gov.uk/id/local-authority-district/23UB,Cheltenham Borough Council,Art Gallery & Museum Repairs & Maintenance,14071657,1343148,Otis Limited,R2010-CUL117,R & M of Plant Lifts,30/08/2019,1622.64 
http://statistics.data.gov.uk/id/local-authority-district/23UB,Cheltenham Borough Council,Prince of Wales Stadium Repairs & Maintenance,14071469,6697,Outdoor High Light Limited,R2004-REC112,R & M of Build Programmed,23/08/2019,6929.27 
http://statistics.data.gov.uk/id/local-authority-district/23UB,Cheltenham Borough Council,Income and Expenditure on Investment Properties and Changes in Their Fair Value,14071067,65776,P & R Heating Limited,R2004-FIE040,R & M of Build Programmed,02/08/2019,524.00 
http://statistics.data.gov.uk/id/local-authority-district/23UB,Cheltenham Borough Council,Recreation Centre Repairs & Maintenance,14071384,65777,P & R Heating Limited,R2080-REC111,Mechanical Services,16/08/2019,3371.25 
http://statistics.data.gov.uk/id/local-authority-district/23UB,Cheltenham Borough Council,Recreation Centre Repairs & Maintenance,14071640,65778,P & R Heating Limited,R2080-REC111,Mechanical Services,30/08/2019,1009.69 
http://statistics.data.gov.uk/id/local-authority-district/23UB,Cheltenham Borough Council,Income and Expenditure on Investment Properties and Changes in Their Fair Value,14071068,65781,P & R Heating Limited,R2004-FIE040,R & M of Build Programmed,02/08/2019,5827.00 
http://statistics.data.gov.uk/id/local-authority-district/23UB,Cheltenham Borough Council,Car Parks - Off Street Operations,14071317,65821,P & R Heating Limited,R2008-CPK001,R & M of Build - Reactive Repairs,09/08/2019,574.66 
http://statistics.data.gov.uk/id/local-authority-district/23UB,Cheltenham Borough Council,Prince of Wales Stadium Repairs & Maintenance,14071548,65829,P & R Heating Limited,R2062-REC112,R & M of Build Cyclical Electrical Remedials,23/08/2019,2338.00 
http://statistics.data.gov.uk/id/local-authority-district/23UB,Cheltenham Borough Council,Recreation Centre Repairs & Maintenance,14071356,65875,P & R Heating Limited,R2083-REC111,R&M of Build - Routine,09/08/2019,618.84 
http://statistics.data.gov.uk/id/local-authority-district/23UB,Cheltenham Borough Council,Recreation Centre Repairs & Maintenance,14071624,65932,P & R Heating Limited,R2007-REC111,R & M of Plant Contracts,30/08/2019,4985.20 
http://statistics.data.gov.uk/id/local-authority-district/23UB,Cheltenham Borough Council,Public Realm Improvements - High Street Phase 2,14071295,PC4299,Perfect Circle JV Limited,C1105-CAP207,Design Services,16/08/2019,5839.45 
http://statistics.data.gov.uk/id/local-authority-district/23UB,Cheltenham Borough Council,Oakley Resource Centre,14071149,25314,Pro-Door Limited,R2045-COM101,R & M of Build Door Entry,02/08/2019,835.00 
http://statistics.data.gov.uk/id/local-authority-district/23UB,Cheltenham Borough Council,Play areas enhancement,14071526,SIN001210,Proludic Limited,C4000-CAP102,Acquisition of Equipment,23/08/2019,16099.98 
http://statistics.data.gov.uk/id/local-authority-district/23UB,Cheltenham Borough Council,ICT,14071406,85001707,Publica Group (Support) Limited,R5500-SUP005,TPP - Publica Contract,30/08/2019,121687.73 
http://statistics.data.gov.uk/id/local-authority-district/23UB,Cheltenham Borough Council,Publica Business Support Contract,14071565,85001743,Publica Group (Support) Limited,R5500-SUP106,TPP - Publica Contract,30/08/2019,121687.74 
http://statistics.data.gov.uk/id/local-authority-district/23UB,Cheltenham Borough Council,Town Hall Repairs & Maintenance,14071094,27218,R F Gardiner Limited T/as Gardiners,R2043-CUL112,R & M of Build Drain Cleaning,02/08/2019,779.44 
http://statistics.data.gov.uk/id/local-authority-district/23UB,Cheltenham Borough Council,Sports & Open Spaces Repairs & Maintenance,14071083,27227,R F Gardiner Limited T/as Gardiners,R2081-OPS122,Roof Repairs,02/08/2019,919.74 
http://statistics.data.gov.uk/id/local-authority-district/23UB,Cheltenham Borough Council,Recreation Centre Repairs & Maintenance,14071070,27231,R F Gardiner Limited T/as Gardiners,R2008-REC111,R & M of Build - Reactive Repairs,02/08/2019,840.40 
http://statistics.data.gov.uk/id/local-authority-district/23UB,Cheltenham Borough Council,Cheltenham Municipal Offices,14071092,27238,R F Gardiner Limited T/as Gardiners,R2081-ADB101,Roof Repairs,02/08/2019,515.10 
http://statistics.data.gov.uk/id/local-authority-district/23UB,Cheltenham Borough Council,Car Parks - Off Street R&M,14071421,27570,R F Gardiner Limited T/as Gardiners,R2004-CPK101,R & M of Build Programmed,23/08/2019,2518.90 
http://statistics.data.gov.uk/id/local-authority-district/23UB,Cheltenham Borough Council,Income and Expenditure on Investment Properties and Changes in Their Fair Value,14071578,27582,R F Gardiner Limited T/as Gardiners,R2078-FIE040,R&M of Build - external structures,30/08/2019,542.57 
http://statistics.data.gov.uk/id/local-authority-district/23UB,Cheltenham Borough Council,Cheltenham Municipal Offices,14071581,27583,R F Gardiner Limited T/as Gardiners,R2014-ADB101,R & M of Build Windows,30/08/2019,507.18 
http://statistics.data.gov.uk/id/local-authority-district/23UB,Cheltenham Borough Council,Cyber Business Park,14071300,1619,RAB Retail Ltd,R4411-PLP105,Consultancy Fees,09/08/2019,1000.00 
http://statistics.data.gov.uk/id/local-authority-district/23UB,Cheltenham Borough Council,Cyber Business Park,14071296,1620,RAB Retail Ltd,R4411-PLP105,Consultancy Fees,09/08/2019,750.00 
http://statistics.data.gov.uk/id/local-authority-district/23UB,Cheltenham Borough Council,Cyber Business Park,14071297,1621,RAB Retail Ltd,R4411-PLP105,Consultancy Fees,09/08/2019,1250.00 
http://statistics.data.gov.uk/id/local-authority-district/23UB,Cheltenham Borough Council,Cyber Business Park,14071298,1622,RAB Retail Ltd,R4411-PLP105,Consultancy Fees,09/08/2019,1000.00 
http://statistics.data.gov.uk/id/local-authority-district/23UB,Cheltenham Borough Council,Cyber Business Park,14071299,1623,RAB Retail Ltd,R4411-PLP105,Consultancy Fees,09/08/2019,1000.00 
http://statistics.data.gov.uk/id/local-authority-district/23UB,Cheltenham Borough Council,Development Control - Applications,14071484,4895448,Reach Publishing Services Ltd,R4317-DEV001,Non Staff Advertising,16/08/2019,591.36 
http://statistics.data.gov.uk/id/local-authority-district/23UB,Cheltenham Borough Council,Sports & Open Spaces Operations,14071393,25928,Roadmark Limited,R2075-OPS002,Grounds Maintenance - Contract,16/08/2019,2283.00 
http://statistics.data.gov.uk/id/local-authority-district/23UB,Cheltenham Borough Council,Sports & Open Spaces Operations,14071527,2875,Royal Agricultural University,R2071-OPS002,Open Spaces and Grassed Areas,23/08/2019,504.50 
http://statistics.data.gov.uk/id/local-authority-district/23UB,Cheltenham Borough Council,Council Tax Collection,14071115,9059179347,Royal Mail,R4521-LTC001,Postages - franking machine,09/08/2019,513.96 
http://statistics.data.gov.uk/id/local-authority-district/23UB,Cheltenham Borough Council,Council Tax Collection,14071114,9059218237,Royal Mail,R4521-LTC001,Postages - franking machine,09/08/2019,529.36 
http://statistics.data.gov.uk/id/local-authority-district/23UB,Cheltenham Borough Council,Council Tax Collection,14071422,9059307190,Royal Mail,R4521-LTC001,Postages - franking machine,23/08/2019,726.51 
http://statistics.data.gov.uk/id/local-authority-district/23UB,Cheltenham Borough Council,Car Parks - Off Street Operations,14071155,105,Roylan Cycles Limited,R4000-CPK001,Equipment Purchase,02/08/2019,1103.84 
http://statistics.data.gov.uk/id/local-authority-district/23UB,Cheltenham Borough Council,Development Control - Applications,14071274,19-369-INV001,Ryder Landscape Consultants Limited,R4400-DEV001,Services - Professional Fees,16/08/2019,562.50 
http://statistics.data.gov.uk/id/local-authority-district/23UB,Cheltenham Borough Council,Income and Expenditure on Investment Properties and Changes in Their Fair Value,14071319,57796,Ryeford Cleaning Services Limited,R2700-FIE040,Contract Cleaning,09/08/2019,528.34 
http://statistics.data.gov.uk/id/local-authority-district/23UB,Cheltenham Borough Council,Sandford Lido car park,14071456,SANDFORD LIDO JUL 19,Sandford Parks Lido (Trading) Limited,R5003-CPK103,TPP - Agency Fees,30/08/2019,39470.71 
http://statistics.data.gov.uk/id/local-authority-district/23UB,Cheltenham Borough Council,Sandford Lido car park,14071456,SANDFORD LIDO JUL 19,Sandford Parks Lido (Trading) Limited,R5003-CPK103,TPP - Agency Fees,30/08/2019,-1683.33 
http://statistics.data.gov.uk/id/local-authority-district/23UB,Cheltenham Borough Council,Cyber Business Park,14070960,431749,Savills (UK) Limited,R4400-PLP105,Services - Professional Fees,02/08/2019,70000.00 
http://statistics.data.gov.uk/id/local-authority-district/23UB,Cheltenham Borough Council,Asbestos Management,14071607,U1002918,Savills (UK) Limited,C1005-CAH012,Surveyors Fees,30/08/2019,8999.50 
http://statistics.data.gov.uk/id/local-authority-district/23UB,Cheltenham Borough Council,Car Parks - Off Street Operations,14071206,S&B-GB211712,Scheidt & Bachmann UK Ltd,R4320-CPK001,Controlled Stationery,16/08/2019,2790.60 
http://statistics.data.gov.uk/id/local-authority-district/23UB,Cheltenham Borough Council,Development costs - Monkscroft,14071452,REDACTED,Severn Trent Water,C1116-CAH061,Other Development Fees,16/08/2019,552.08 
http://statistics.data.gov.uk/id/local-authority-district/23UB,Cheltenham Borough Council,Internal Improvements - Communal,14071413,9015,Shield Electrical Services Ltd,C1107-CAH035,Building Works,16/08/2019,46453.74 
http://statistics.data.gov.uk/id/local-authority-district/23UB,Cheltenham Borough Council,Internal Improvements - Communal,14071413,9015,Shield Electrical Services Ltd,C1107-CAH035,Building Works,16/08/2019,46453.74 
http://statistics.data.gov.uk/id/local-authority-district/23UB,Cheltenham Borough Council,Internal Improvements - Communal,14071413,9015,Shield Electrical Services Ltd,C1107-CAH035,Building Works,16/08/2019,-46453.74 
http://statistics.data.gov.uk/id/local-authority-district/23UB,Cheltenham Borough Council,Cheltenham Municipal Offices,14071501,9503475573,Shred-it Limited,R4401-ADB101,Services - Fees and Charges,23/08/2019,690.77 
http://statistics.data.gov.uk/id/local-authority-district/23UB,Cheltenham Borough Council,Cheltenham Municipal Offices,14071503,9503607983,Shred-it Limited,R4401-ADB101,Services - Fees and Charges,23/08/2019,748.69 
http://statistics.data.gov.uk/id/local-authority-district/23UB,Cheltenham Borough Council,Tourist/Visitor Information Centre,14071050,80320,Signcraft Limited,R4317-TOU002,Non Staff Advertising,02/08/2019,1384.00 
http://statistics.data.gov.uk/id/local-authority-district/23UB,Cheltenham Borough Council,External Improvements,14070365,40536,Snape Contracting Services Limited,C1107-CAH003,Building Works,16/08/2019,4738.37 
http://statistics.data.gov.uk/id/local-authority-district/23UB,Cheltenham Borough Council,External Improvements,14070365,40536,Snape Contracting Services Limited,C1107-CAH003,Building Works,16/08/2019,-4738.37 
http://statistics.data.gov.uk/id/local-authority-district/23UB,Cheltenham Borough Council,External Improvements,14070365,40536,Snape Contracting Services Limited,C1107-CAH003,Building Works,16/08/2019,4738.37 
http://statistics.data.gov.uk/id/local-authority-district/23UB,Cheltenham Borough Council,Tourist/Visitor Information Centre,14071259,SOPUB-INV-3909,So Publishing T/A SoGlos.com,R4014-TOU002,Marketing,09/08/2019,680.00 
http://statistics.data.gov.uk/id/local-authority-district/23UB,Cheltenham Borough Council,Bulking Facility,14071103,31312,South West Wood Products Limited,R2703-RYC008,Waste Management,02/08/2019,664.32 
http://statistics.data.gov.uk/id/local-authority-district/23UB,Cheltenham Borough Council,Bulking Facility,14071102,31717,South West Wood Products Limited,R2703-RYC008,Waste Management,09/08/2019,5267.52 
http://statistics.data.gov.uk/id/local-authority-district/23UB,Cheltenham Borough Council,,0,,,-,,,0.00 
http://statistics.data.gov.uk/id/local-authority-district/23UB,Cheltenham Borough Council,Bulking Facility,14071433,32318,South West Wood Products Limited,R2703-RYC008,Waste Management,16/08/2019,6518.40 
http://statistics.data.gov.uk/id/local-authority-district/23UB,Cheltenham Borough Council,Bulking Facility,14071461,32319,South West Wood Products Limited,R2703-RYC008,Waste Management,16/08/2019,1468.80 
http://statistics.data.gov.uk/id/local-authority-district/23UB,Cheltenham Borough Council,Non Traditional Homes,14071202,25449,Sustainable Building Services UK Ltd,C1107-CAH036,Building Works,09/08/2019,194514.29 
http://statistics.data.gov.uk/id/local-authority-district/23UB,Cheltenham Borough Council,Non Traditional Homes,14071202,25449,Sustainable Building Services UK Ltd,C1107-CAH036,Building Works,09/08/2019,-194514.29 
http://statistics.data.gov.uk/id/local-authority-district/23UB,Cheltenham Borough Council,Non Traditional Homes,14071202,25449,Sustainable Building Services UK Ltd,C1107-CAH036,Building Works,09/08/2019,194514.29 
http://statistics.data.gov.uk/id/local-authority-district/23UB,Cheltenham Borough Council,Cyber Business Park,14071237,325972,Target Marketing Group Limited,R4400-PLP105,Services - Professional Fees,09/08/2019,2750.00 
http://statistics.data.gov.uk/id/local-authority-district/23UB,Cheltenham Borough Council,Legal,14071110,DEBT107216,Tewkesbury Borough Council,R4401-SUP004,Services - Fees and Charges,09/08/2019,162307.49 
http://statistics.data.gov.uk/id/local-authority-district/23UB,Cheltenham Borough Council,Property Services,14071420,DEBT107232,Tewkesbury Borough Council,R4400-SUP025,Services - Professional Fees,23/08/2019,857.32 
http://statistics.data.gov.uk/id/local-authority-district/23UB,Cheltenham Borough Council,Property Services,14071420,DEBT107232,Tewkesbury Borough Council,R4400-SUP025,Services - Professional Fees,23/08/2019,5832.00 
http://statistics.data.gov.uk/id/local-authority-district/23UB,Cheltenham Borough Council,Property Services,14071497,DEBT107242,Tewkesbury Borough Council,R4400-SUP025,Services - Professional Fees,23/08/2019,517.44 
http://statistics.data.gov.uk/id/local-authority-district/23UB,Cheltenham Borough Council,Property Services,14071497,DEBT107242,Tewkesbury Borough Council,R4400-SUP025,Services - Professional Fees,23/08/2019,540.00 
http://statistics.data.gov.uk/id/local-authority-district/23UB,Cheltenham Borough Council,Cultural - Service Management and Support Services,14071117,70064415,The Cheltenham Trust,R5001-CSM001,TPP - Major External Contractors,09/08/2019,11624.00 
http://statistics.data.gov.uk/id/local-authority-district/23UB,Cheltenham Borough Council,Cultural - Service Management and Support Services,14071646,70064818,The Cheltenham Trust,R5001-CSM001,TPP - Major External Contractors,23/08/2019,67606.75 
http://statistics.data.gov.uk/id/local-authority-district/23UB,Cheltenham Borough Council,Community Welfare Grants,14071444,POSACTS-TCT JULY 2019,The Cheltenham Trust,R6280-GBD001,Grants,16/08/2019,5000.00 
http://statistics.data.gov.uk/id/local-authority-district/23UB,Cheltenham Borough Council,Parks & Gardens Operations,14071185,INV-6196,The Institute of Groundsmanship,R2075-OPS001,Grounds Maintenance - Contract,09/08/2019,1673.00 
http://statistics.data.gov.uk/id/local-authority-district/23UB,Cheltenham Borough Council,Development costs - Monkscroft,14071409,5562,The Landmark Practice,C1111-CAH061,Clerk of Works,23/08/2019,1950.00 
http://statistics.data.gov.uk/id/local-authority-district/23UB,Cheltenham Borough Council,General Fund Balance Sheet,14071391,8.50028E+11,The Midcounties Co-operative,B1670-BAL100,Assets under construction - Other depreciation/impairment movements,09/08/2019,1721.83 
http://statistics.data.gov.uk/id/local-authority-district/23UB,Cheltenham Borough Council,Planning Policy,14071212,1800002657,The Planning Inspectorate,R4400-PLP001,Services - Professional Fees,02/08/2019,46137.64 
http://statistics.data.gov.uk/id/local-authority-district/23UB,Cheltenham Borough Council,Community Welfare Grants,14071222,3419,The Rock,R6280-GBD001,Grants,02/08/2019,3272.73 
http://statistics.data.gov.uk/id/local-authority-district/23UB,Cheltenham Borough Council,Adaptations for the Disabled (CBC),14071221,17/00048/DMTLA INTERIM NO 2,The Surveying Practice - Client Account,C1107-CAH028,Building Works,02/08/2019,12000.00 
http://statistics.data.gov.uk/id/local-authority-district/23UB,Cheltenham Borough Council,Disabled Facility Grants,14071187,REDACTED,The Surveying Practice - Client Account,C5000-CAP221,Grants,02/08/2019,10000.00 
http://statistics.data.gov.uk/id/local-authority-district/23UB,Cheltenham Borough Council,Adaptations for the Disabled (CBC),14071447,19/00010/DMTLA FINAL,The Surveying Practice - Client Account,C1107-CAH028,Building Works,16/08/2019,7829.36 
http://statistics.data.gov.uk/id/local-authority-district/23UB,Cheltenham Borough Council,Adaptations for the Disabled (CBC),14071448,19/00014/DMTLA FINAL,The Surveying Practice - Client Account,C1107-CAH028,Building Works,16/08/2019,8715.58 
http://statistics.data.gov.uk/id/local-authority-district/23UB,Cheltenham Borough Council,Licensing,14071701,TF 1299,Top Flight Business Services Ltd,R4420-REG002,Legal Expenses And Court Costs,30/08/2019,603.00 
http://statistics.data.gov.uk/id/local-authority-district/23UB,Cheltenham Borough Council,Planning Policy,14071264,CBC007,REDACTED,R4400-PLP001,Services - Professional Fees,09/08/2019,525.00 
http://statistics.data.gov.uk/id/local-authority-district/23UB,Cheltenham Borough Council,Treasury Management,14071247,TLB/LN/CHEL-*L/DEPOT/07/2019,Tradition UK Limited,R4447-COR006,Brokerage Fees,09/08/2019,3726.03 
http://statistics.data.gov.uk/id/local-authority-district/23UB,Cheltenham Borough Council,"Cemetery, Crematorium and Churchyards",14069868,2546,Travail Employment Group,R1100-CCM001,Agency Staff,16/08/2019,1947.56 
http://statistics.data.gov.uk/id/local-authority-district/23UB,Cheltenham Borough Council,"Cemetery, Crematorium and Churchyards",14069981,2751,Travail Employment Group,R1100-CCM001,Agency Staff,16/08/2019,3077.27 
http://statistics.data.gov.uk/id/local-authority-district/23UB,Cheltenham Borough Council,"Cemetery, Crematorium and Churchyards",14070195,3126,Travail Employment Group,R1100-CCM001,Agency Staff,16/08/2019,3717.26 
http://statistics.data.gov.uk/id/local-authority-district/23UB,Cheltenham Borough Council,"Cemetery, Crematorium and Churchyards",14070291,3227,Travail Employment Group,R1100-CCM001,Agency Staff,16/08/2019,3492.42 
http://statistics.data.gov.uk/id/local-authority-district/23UB,Cheltenham Borough Council,"Cemetery, Crematorium and Churchyards",14070563,3711,Travail Employment Group,R1100-CCM001,Agency Staff,16/08/2019,4713.36 
http://statistics.data.gov.uk/id/local-authority-district/23UB,Cheltenham Borough Council,"Cemetery, Crematorium and Churchyards",14070746,4001,Travail Employment Group,R1100-CCM001,Agency Staff,16/08/2019,3589.49 
http://statistics.data.gov.uk/id/local-authority-district/23UB,Cheltenham Borough Council,"Cemetery, Crematorium and Churchyards",14070945,4069,Travail Employment Group,R1100-CCM001,Agency Staff,16/08/2019,3463.89 
http://statistics.data.gov.uk/id/local-authority-district/23UB,Cheltenham Borough Council,"Cemetery, Crematorium and Churchyards",14071058,4368,Travail Employment Group,R1100-CCM001,Agency Staff,16/08/2019,3414.66 
http://statistics.data.gov.uk/id/local-authority-district/23UB,Cheltenham Borough Council,"Cemetery, Crematorium and Churchyards",14071215,4665,Travail Employment Group,R1100-CCM001,Agency Staff,16/08/2019,2782.93 
http://statistics.data.gov.uk/id/local-authority-district/23UB,Cheltenham Borough Council,"Cemetery, Crematorium and Churchyards",14071397,4951,Travail Employment Group,R1100-CCM001,Agency Staff,16/08/2019,2713.17 
http://statistics.data.gov.uk/id/local-authority-district/23UB,Cheltenham Borough Council,Development Control - Applications,14071193,12242001,Tyler Grange LLP,R4400-DEV001,Services - Professional Fees,02/08/2019,850.00 
http://statistics.data.gov.uk/id/local-authority-district/23UB,Cheltenham Borough Council,Household Waste,14071649,60028433,Ubico Limited,R5001-WST001,TPP - Major External Contractors,30/08/2019,743448.50 
http://statistics.data.gov.uk/id/local-authority-district/23UB,Cheltenham Borough Council,Car Parks - Off Street Operations,14071429,2154,Verrus (UK) Limited (Pay By Phone),R4401-CPK001,Services - Fees and Charges,23/08/2019,4636.50 
http://statistics.data.gov.uk/id/local-authority-district/23UB,Cheltenham Borough Council,Bulky Household Waste,14071010,19-Jul,Vision 21,R4401-WST004,Services - Fees and Charges,02/08/2019,3687.50 
http://statistics.data.gov.uk/id/local-authority-district/23UB,Cheltenham Borough Council,Bulky Household Waste,14071009,19-Aug,Vision 21,R4401-WST004,Services - Fees and Charges,02/08/2019,3743.75 
http://statistics.data.gov.uk/id/local-authority-district/23UB,Cheltenham Borough Council,Bulky Household Waste,14071238,19-Sep,Vision 21,R4401-WST004,Services - Fees and Charges,09/08/2019,3975.00 
http://statistics.data.gov.uk/id/local-authority-district/23UB,Cheltenham Borough Council,Cyber Business Park,14070566,37763,"Vivid Resourcing, a division of g2V Recruitment Group Limited",R4400-PLP105,Services - Professional Fees,02/08/2019,2885.00 
http://statistics.data.gov.uk/id/local-authority-district/23UB,Cheltenham Borough Council,Cyber Business Park,14071245,38555,"Vivid Resourcing, a division of g2V Recruitment Group Limited",R4400-PLP105,Services - Professional Fees,09/08/2019,2885.00 
http://statistics.data.gov.uk/id/local-authority-district/23UB,Cheltenham Borough Council,Cyber Business Park,14071431,38734,"Vivid Resourcing, a division of g2V Recruitment Group Limited",R4400-PLP105,Services - Professional Fees,16/08/2019,2885.00 
http://statistics.data.gov.uk/id/local-authority-district/23UB,Cheltenham Borough Council,Cyber Business Park,14071564,38918,"Vivid Resourcing, a division of g2V Recruitment Group Limited",R4400-PLP105,Services - Professional Fees,23/08/2019,2885.00 
http://statistics.data.gov.uk/id/local-authority-district/23UB,Cheltenham Borough Council,Cyber Business Park,14071669,39080,"Vivid Resourcing, a division of g2V Recruitment Group Limited",R4400-PLP105,Services - Professional Fees,30/08/2019,2885.00 
http://statistics.data.gov.uk/id/local-authority-district/23UB,Cheltenham Borough Council,Arle Road Nursery Operations,14070380,stw-INV02659967,Water Plus Select Limited,R2401-OPS101,Water Services - Metered,23/08/2019,852.01 
http://statistics.data.gov.uk/id/local-authority-district/23UB,Cheltenham Borough Council,Arle Road Nursery Operations,14070380,stw-INV02659967,Water Plus Select Limited,R2402-OPS101,Sewerage and Environmental Services,23/08/2019,612.06 
http://statistics.data.gov.uk/id/local-authority-district/23UB,Cheltenham Borough Council,Prince of Wales Stadium Repairs & Maintenance,14071404,stw-INV02688358,Water Plus Select Limited,R2402-REC112,Sewerage and Environmental Services,23/08/2019,977.68 
http://statistics.data.gov.uk/id/local-authority-district/23UB,Cheltenham Borough Council,Parks & Gardens Operations,14071253,527,Watkins Iles Limited,R2007-OPS001,R & M of Plant Contracts,09/08/2019,3076.16 
http://statistics.data.gov.uk/id/local-authority-district/23UB,Cheltenham Borough Council,Parks & Gardens Operations,14071730,531,Watkins Iles Limited,R2007-OPS001,R & M of Plant Contracts,30/08/2019,768.00 
http://statistics.data.gov.uk/id/local-authority-district/23UB,Cheltenham Borough Council,Development costs - Phase 3 Garage Sites,14071524,4513,Wilson Associates (Consulting) Limited,C1112-CAH062,Site Investigation,30/08/2019,4465.00 
http://statistics.data.gov.uk/id/local-authority-district/23UB,Cheltenham Borough Council,Cheltenham Business Improvement District (BID) Levy,14071225,BID INV OVERPAYMENT,Dave Whelan Sports Ltd,R8914-HLD160,NNDR refunds,09/08/2019,1229.89 
http://statistics.data.gov.uk/id/local-authority-district/23UB,Cheltenham Borough Council,General Fund Balance Sheet,14071401,REF 2001939408,Gloucestershire County Council,B6170-BAL100,Short Term Revenue Creditors (incl RIA) - Other entities and individuals,16/08/2019,56366.75 
http://statistics.data.gov.uk/id/local-authority-district/23UB,Cheltenham Borough Council,Rent Control,14071389,RENT REFUND (REDACTED),REDACTED,R9910-HRA900,Refund of Overpaid Rent,09/08/2019,964.91 
http://statistics.data.gov.uk/id/local-authority-district/23UB,Cheltenham Borough Council,Rent Control,14071390,RENT REFUND (REDACTED),REDACTED,R9910-HRA900,Refund of Overpaid Rent,09/08/2019,1368.22 
http://statistics.data.gov.uk/id/local-authority-district/23UB,Cheltenham Borough Council,Homelessness,14071477,Y4732,Morgan Associates,R6280-HOM001,Grants,16/08/2019,917.31 
Bank Transactions,,,,,,,,,
http://statistics.data.gov.uk/id/local-authority-district/23UB,Cheltenham Borough Council,Cheltenham Municipal Offices,10030395,Bank Transactions,WEST MERCIA ENERGY - ELECTRICITY -  MUNICIPAL OFFICES   - 01/06/2019-30/06/2019,R2100-ADB101,Electricity,16/08/2019,2511.99 
http://statistics.data.gov.uk/id/local-authority-district/23UB,Cheltenham Borough Council,Cheltenham Municipal Offices,10030395,Bank Transactions,WEST MERCIA ENERGY - GAS  - MUNICIPAL OFFICES -  31/05/2019 - 30/06/2019,R2101-ADB101,Gas,16/08/2019,693.54 
http://statistics.data.gov.uk/id/local-authority-district/23UB,Cheltenham Borough Council,Cheltenham Depot,10030395,Bank Transactions,WEST MERCIA ENERGY - ELECTRICITY - CENTRAL DEPOT SWINDON ROAD  - 01/06/2019-30/06/2019,R2100-ADB103,Electricity,16/08/2019,2911.72 
http://statistics.data.gov.uk/id/local-authority-district/23UB,Cheltenham Borough Council,Cheltenham Depot,10030345,Bank Transactions,"WATER PLUS - 406002149 ENVIRONMENTAL MAINTENANCE, SWINDON ROAD, CHELTENHAM GL51 9JZ - WATER SUPPLY 26 JUNE - 26 JULY 2019",R2401-ADB103,Water Services - Metered,12/08/2019,713.27 
http://statistics.data.gov.uk/id/local-authority-district/23UB,Cheltenham Borough Council,Disabled Facility Grants,10030320,Bank Transactions,DAVIS GREGORY LTD 15/00035/DM0OC,C5000-CAP221,Grants,06/08/2019,-2179.92 
http://statistics.data.gov.uk/id/local-authority-district/23UB,Cheltenham Borough Council,Disabled Facility Grants,10030374,Bank Transactions,DAVIS GREGORY - 15/00035/DMOOC,C5000-CAP221,Grants,06/08/2019,2179.92 
http://statistics.data.gov.uk/id/local-authority-district/23UB,Cheltenham Borough Council,West Cheltenham Development,10030494,Bank Transactions,Land Purchase price and associated costs for Land at West Cheltenham,C1000-CAP512,Acquisition of Land,22/08/2019,39079550.60 
http://statistics.data.gov.uk/id/local-authority-district/23UB,Cheltenham Borough Council,"Cemetery, Crematorium and Churchyards",10030395,Bank Transactions,WEST MERCIA ENERGY - ELECTRICITY - CEMETERY & CREMATORIUM  - 01/06/2019-30/06/2019,R2100-CCM001,Electricity,16/08/2019,1747.83 
http://statistics.data.gov.uk/id/local-authority-district/23UB,Cheltenham Borough Council,"Cemetery, Crematorium and Churchyards",10030395,Bank Transactions,WEST MERCIA ENERGY - GAS - CEMETERY & CREMATORIUM-  31/05/2019 - 30/06/2019,R2101-CCM001,Gas,16/08/2019,2055.73 
http://statistics.data.gov.uk/id/local-authority-district/23UB,Cheltenham Borough Council,"Cemetery, Crematorium and Churchyards",10030513,Bank Transactions,WEST MERCIA ENERGY - GAS - CEMETERY & CREMATORIUM - 01/01/2019-28/02/2019,R2101-CCM001,Gas,30/08/2019,-8501.77 
http://statistics.data.gov.uk/id/local-authority-district/23UB,Cheltenham Borough Council,"Cemetery, Crematorium and Churchyards",10030513,Bank Transactions,WEST MERCIA ENERGY - GAS - CEMETERY & CREMATORIUM - 28/02/2019-31/03/2019,R2101-CCM001,Gas,30/08/2019,-3427.20 
http://statistics.data.gov.uk/id/local-authority-district/23UB,Cheltenham Borough Council,"Cemetery, Crematorium and Churchyards",10030513,Bank Transactions,WEST MERCIA ENERGY - GAS - CEMETERY & CREMATORIUM - 30/04/2019-31/05/2019,R2101-CCM001,Gas,30/08/2019,-1799.74 
http://statistics.data.gov.uk/id/local-authority-district/23UB,Cheltenham Borough Council,"Cemetery, Crematorium and Churchyards",10030513,Bank Transactions,WEST MERCIA ENERGY - GAS - CEMETERY & CREMATORIUM - 31/01/2019-28/02/2019,R2101-CCM001,Gas,30/08/2019,1422.09 
http://statistics.data.gov.uk/id/local-authority-district/23UB,Cheltenham Borough Council,"Cemetery, Crematorium and Churchyards",10030513,Bank Transactions,WEST MERCIA ENERGY - GAS - CEMETERY & CREMATORIUM - 31/03/2019-30/04/2019,R2101-CCM001,Gas,30/08/2019,-2011.69 
http://statistics.data.gov.uk/id/local-authority-district/23UB,Cheltenham Borough Council,"Cemetery, Crematorium and Churchyards",10030513,Bank Transactions,WEST MERCIA ENERGY - GAS - CEMETERY & CREMATORIUM - 31/05/2019-30/06/2019,R2101-CCM001,Gas,30/08/2019,1360.69 
http://statistics.data.gov.uk/id/local-authority-district/23UB,Cheltenham Borough Council,"Cemetery, Crematorium and Churchyards",10030513,Bank Transactions,WEST MERCIA ENERGY - GAS - CEMETERY & CREMATORIUM - 31/12/2018-31/01/2019,R2101-CCM001,Gas,30/08/2019,1634.18 
http://statistics.data.gov.uk/id/local-authority-district/23UB,Cheltenham Borough Council,CCTV,10030395,Bank Transactions,WEST MERCIA ENERGY - ELECTRICITY - CCTV @ VARIOUS LOCATIONS  - 01/06/2019-30/06/2019,R2100-CCT001,Electricity,16/08/2019,589.42 
http://statistics.data.gov.uk/id/local-authority-district/23UB,Cheltenham Borough Council,Corporate Management,10030327,Bank Transactions,VODAFONE CORPORATIONS - 2442783M684350 - INVOICE 92144662,R4507-COR001,Comms - Mobile Telephones,07/08/2019,549.33 
http://statistics.data.gov.uk/id/local-authority-district/23UB,Cheltenham Borough Council,Treasury Management,10030514,Bank Transactions,SERVICE CHARGES  REF 288203458,R4403-COR006,Bank Charges,30/08/2019,966.02 
http://statistics.data.gov.uk/id/local-authority-district/23UB,Cheltenham Borough Council,Treasury Management,10030514,Bank Transactions,SERVICE CHARGES  REF 288218023,R4403-COR006,Bank Charges,30/08/2019,569.43 
http://statistics.data.gov.uk/id/local-authority-district/23UB,Cheltenham Borough Council,Treasury Management,10030356,Bank Transactions,CARDNET - 169118221 SERVICE CHARGE - 500221866,R4428-COR006,Services - credit card charges,14/08/2019,3148.85 
http://statistics.data.gov.uk/id/local-authority-district/23UB,Cheltenham Borough Council,Treasury Management,10030356,Bank Transactions,CARDNET - 169118221 SERVICE CHARGE - 500701602,R4428-COR006,Services - credit card charges,14/08/2019,1087.01 
http://statistics.data.gov.uk/id/local-authority-district/23UB,Cheltenham Borough Council,Treasury Management,10030356,Bank Transactions,CARDNET - 500200738 SERVICE CHARGE -,R4428-COR006,Services - credit card charges,14/08/2019,2515.71 
http://statistics.data.gov.uk/id/local-authority-district/23UB,Cheltenham Borough Council,Car Parks - Off Street Operations,10030395,Bank Transactions,WEST MERCIA ENERGY - ELECTRICITY - CAR PARK - GROSVENOR TERRACE - 01/06/2019-30/06/2019,R2100-CPK001,Electricity,16/08/2019,1540.07 
http://statistics.data.gov.uk/id/local-authority-district/23UB,Cheltenham Borough Council,Car Parks - Off Street Operations,10030395,Bank Transactions,WEST MERCIA ENERGY - ELECTRICITY - CAR PARK - REGENT ARCADE - 01/06/2019-30/06/2019,R2100-CPK001,Electricity,16/08/2019,804.30 
http://statistics.data.gov.uk/id/local-authority-district/23UB,Cheltenham Borough Council,Car Parks - Off Street Operations,10030459,Bank Transactions,S/LINE 72854660 INV 26288205,R4428-CPK001,Services - credit card charges,20/08/2019,5380.77 
http://statistics.data.gov.uk/id/local-authority-district/23UB,Cheltenham Borough Council,Car Parks - Off Street Operations,10030459,Bank Transactions,S/LINE 73070893 INV 31868395 -,R4428-CPK001,Services - credit card charges,20/08/2019,1222.71 
http://statistics.data.gov.uk/id/local-authority-district/23UB,Cheltenham Borough Council,Town Hall Repairs & Maintenance,10030395,Bank Transactions,WEST MERCIA ENERGY - ELECTRICITY - CHELTENHAM TOWN HALL - 01/06/2019-30/06/2019,R2100-CUL112,Electricity,16/08/2019,4859.21 
http://statistics.data.gov.uk/id/local-authority-district/23UB,Cheltenham Borough Council,Town Hall Repairs & Maintenance,10030395,Bank Transactions,WEST MERCIA ENERGY - GAS - CHELTENHAM TOWN HALL-  31/05/2019 - 30/06/2019,R2101-CUL112,Gas,16/08/2019,885.27 
http://statistics.data.gov.uk/id/local-authority-district/23UB,Cheltenham Borough Council,Pittville Pump Room Repairs & Maintenance,10030395,Bank Transactions,WEST MERCIA ENERGY - ELECTRICITY -  PITTVILLE PUMP ROOMS    - 01/06/2019-30/06/2019,R2100-CUL113,Electricity,16/08/2019,920.91 
http://statistics.data.gov.uk/id/local-authority-district/23UB,Cheltenham Borough Council,Art Gallery & Museum Repairs & Maintenance,10030395,Bank Transactions,WEST MERCIA ENERGY - ELECTRICITY -  WILSON ART GALLERY & MUSEUM    - 01/06/2019-30/06/2019,R2100-CUL117,Electricity,16/08/2019,5504.07 
http://statistics.data.gov.uk/id/local-authority-district/23UB,Cheltenham Borough Council,Art Gallery & Museum Repairs & Maintenance,10030395,Bank Transactions,WEST MERCIA ENERGY - GAS  - WILSON ART GALLERY & MUSEUM -  31/05/2019 - 30/06/2019,R2101-CUL117,Gas,16/08/2019,1246.36 
http://statistics.data.gov.uk/id/local-authority-district/23UB,Cheltenham Borough Council,Development Control - Applications,10030334,Bank Transactions,Local Govt Ombudsman Complaint- REDACTED,R4420-DEV001,Legal Expenses And Court Costs,09/08/2019,25000.00 
http://statistics.data.gov.uk/id/local-authority-district/23UB,Cheltenham Borough Council,Development Control - Applications,10030327,Bank Transactions,VODAFONE CORPORATIONS - 2442783M684350 - INVOICE 92144662,R4507-DEV001,Comms - Mobile Telephones,07/08/2019,1218.64 
http://statistics.data.gov.uk/id/local-authority-district/23UB,Cheltenham Borough Council,Twinning Expenses,10030440,Bank Transactions,FT210952733501 - GOTTINGEN,R4401-DRM011,Services - Fees and Charges,21/08/2019,3462.18 
http://statistics.data.gov.uk/id/local-authority-district/23UB,Cheltenham Borough Council,Cheltenham Trust Intercompany Account,10030327,Bank Transactions,VODAFONE CORPORATIONS - 2442783M684350 - INVOICE 92144662,R4507-HLD170,Comms - Mobile Telephones,07/08/2019,942.82 
http://statistics.data.gov.uk/id/local-authority-district/23UB,Cheltenham Borough Council,Homelessness,10030361,Bank Transactions,Morgan & Associates re 12 Selworthy,R6280-HOM001,Grants,16/08/2019,917.31 
http://statistics.data.gov.uk/id/local-authority-district/23UB,Cheltenham Borough Council,Homelessness,10030430,Bank Transactions,Reversal of Trans 10030361 as duplicate of AP Trans 10030359,R6280-HOM001,Grants,16/08/2019,-917.31 
http://statistics.data.gov.uk/id/local-authority-district/23UB,Cheltenham Borough Council,Housing Standards,10030327,Bank Transactions,VODAFONE CORPORATIONS - 2442783M684350 - INVOICE 92144662,R4507-HOS004,Comms - Mobile Telephones,07/08/2019,1300.60 
http://statistics.data.gov.uk/id/local-authority-district/23UB,Cheltenham Borough Council,Repairs and Maintenance,10030343,Bank Transactions,PROTECTOR INSURANCE - 663147 - CBC-HSG-18  - 46 MERSEY ROAD,R2800-HRA100,Insurances - Premises,07/08/2019,-2363.49 
http://statistics.data.gov.uk/id/local-authority-district/23UB,Cheltenham Borough Council,Supervision and Management,10030395,Bank Transactions,WEST MERCIA ENERGY - GAS  - WALLACE HOUSE -  31/05/2019 - 30/06/2019,R2101-HRA110,Gas,16/08/2019,685.81 
http://statistics.data.gov.uk/id/local-authority-district/23UB,Cheltenham Borough Council,Supervision and Management,10030395,Bank Transactions,WEST MERCIA ENERGY - GAS - COOPERS COURT-  31/05/2019 - 30/06/2019,R2101-HRA110,Gas,16/08/2019,730.80 
http://statistics.data.gov.uk/id/local-authority-district/23UB,Cheltenham Borough Council,Supervision and Management,10030395,Bank Transactions,WEST MERCIA ENERGY - GAS - GILBERT WARD  COURT-  31/05/2019 - 30/06/2019,R2101-HRA110,Gas,16/08/2019,504.89 
http://statistics.data.gov.uk/id/local-authority-district/23UB,Cheltenham Borough Council,Supervision and Management,10030395,Bank Transactions,WEST MERCIA ENERGY - GAS - GOLDFOOT HOUSE-  31/05/2019 - 30/06/2019,R2101-HRA110,Gas,16/08/2019,698.30 
http://statistics.data.gov.uk/id/local-authority-district/23UB,Cheltenham Borough Council,Supervision and Management,10030327,Bank Transactions,VODAFONE CORPORATIONS - 2442783M684350 - INVOICE 92144662,R4507-HRA110,Comms - Mobile Telephones,07/08/2019,9061.73 
http://statistics.data.gov.uk/id/local-authority-district/23UB,Cheltenham Borough Council,Recreation Centre Repairs & Maintenance,10030395,Bank Transactions,WEST MERCIA ENERGY - ELECTRICITY -  LEISURE CENTRE - TOMMY TAYLORS LANE   - 01/06/2019-30/06/2019,R2100-REC111,Electricity,16/08/2019,8176.73 
http://statistics.data.gov.uk/id/local-authority-district/23UB,Cheltenham Borough Council,Recreation Centre Repairs & Maintenance,10030395,Bank Transactions,WEST MERCIA ENERGY - GAS - LEISURE CENTRE - TOMMYS TAYLORS LANE -  31/05/2019 - 30/06/2019,R2101-REC111,Gas,16/08/2019,11195.46 
http://statistics.data.gov.uk/id/local-authority-district/23UB,Cheltenham Borough Council,Recreation Centre Repairs & Maintenance,10030293,Bank Transactions,"WATER PLUS - 467002027 - CHELTENHAM RECREATION CENTRE, TOMMY TAYLORS LANE, CHELTENHAM GL50 4NR - WATER SUPPLY 27/09/2018-07/07/2019",R2401-REC111,Water Services - Metered,01/08/2019,6607.56 
http://statistics.data.gov.uk/id/local-authority-district/23UB,Cheltenham Borough Council,Recreation Centre Repairs & Maintenance,10030293,Bank Transactions,"WATER PLUS - 467002027 - CHELTENHAM RECREATION CENTRE, TOMMY TAYLORS LANE, CHELTENHAM GL50 4NR - TRADE EFFLUENT 27/09/2018-07/07/2019",R2402-REC111,Sewerage and Environmental Services,01/08/2019,750.71 
http://statistics.data.gov.uk/id/local-authority-district/23UB,Cheltenham Borough Council,Recreation Centre Repairs & Maintenance,10030293,Bank Transactions,"WATER PLUS - 467002027 - CHELTENHAM RECREATION CENTRE, TOMMY TAYLORS LANE, CHELTENHAM GL50 4NR - USED WATER  27/09/2018-07/07/2019",R2402-REC111,Sewerage and Environmental Services,01/08/2019,3978.82 
http://statistics.data.gov.uk/id/local-authority-district/23UB,Cheltenham Borough Council,Prince of Wales Stadium Repairs & Maintenance,10030395,Bank Transactions,WEST MERCIA ENERGY - ELECTRICITY -  PRINCE OF WALES STADIUM    - 01/06/2019-30/06/2019,R2100-REC112,Electricity,16/08/2019,2482.59 
http://statistics.data.gov.uk/id/local-authority-district/23UB,Cheltenham Borough Council,ICT,10030327,Bank Transactions,VODAFONE CORPORATIONS - 2442783M684350 - INVOICE 92144662,R4507-SUP005,Comms - Mobile Telephones,07/08/2019,1034.95 
http://statistics.data.gov.uk/id/local-authority-district/23UB,Cheltenham Borough Council,Built Environment,10030327,Bank Transactions,VODAFONE CORPORATIONS - 2442783M684350 - INVOICE 92144662,R4507-SUP040,Comms - Mobile Telephones,07/08/2019,963.76 
http://statistics.data.gov.uk/id/local-authority-district/23UB,Cheltenham Borough Council,Regulatory & Environmental Services Transformation,10030327,Bank Transactions,VODAFONE CORPORATIONS - 2442783M684350 - INVOICE 92144662,R4507-SUP140,Comms - Mobile Telephones,07/08/2019,532.19 
Procurement Cards,,,,,,,,,
http://statistics.data.gov.uk/id/local-authority-district/23UB,Cheltenham Borough Council,Corporate Management,10030515,Procurement Cards,BUSINESS CHARGE CARDS -REDACTED- PREMIER INN,R4611-COR001,Conference Expenses,05/08/2019,1550.00 
http://statistics.data.gov.uk/id/local-authority-district/23UB,Cheltenham Borough Council,Community Welfare Grants,10030515,Procurement Cards,BUSINESS CHARGE CARDS - REDACTED - THE BRANDING TEAM,R4308-GBD001,Stationery,05/08/2019,664.80 
http://statistics.data.gov.uk/id/local-authority-district/23UB,Cheltenham Borough Council,Council Tax Collection,10030515,Procurement Cards,BUSINESS CHARGE CARDS -REDACTED - HM COURTS SERVICE,R4420-LTC001,Legal Expenses And Court Costs,05/08/2019,823.50 
